Cogmind - Beta 15 @@@ ROGUE MODE // 2025.07.16 @ 15:44:56 Player: LumberViking Result: Self-destructed Performance ------------- Evolutions (1) 500 Regions Visited (3) 600 Robots Destroyed (35) 175 Value Destroyed (693) 693 Prototype IDs (0) 0 Alien Tech Used (0) 0 Bonus (0) 0 TOTAL SCORE: 1968 Bonus ------- None Cogmind --------- Core Integrity 388/400 Matter 23/300 Energy 0/100 System Corruption 0% Temperature Cool (0) Movement Treading (160) Location -9/Materials Parts ------- > --- POWER (2) -------- (None) > --- PROPULSION (3) --- Light Treads > --- UTILITY (2) ------ Small Storage Unit ECM Suite > --- WEAPON (2) ------- EM Pulse Gun Beam Cannon > --- INVENTORY (8) ---- Thermal Generator Improved Terrain Scan Processor Improved Targeting Computer Light Assault Rifle Heavy Assault Cannon Grenade Launcher Peak State ------------ > --- POWER ------------ Light Ion Engine > --- PROPULSION ------- Light Treads Light Treads > --- UTILITY ---------- Small Storage Unit ECM Suite > --- WEAPON ----------- Heavy Assault Cannon > --- INVENTORY -------- Thermal Generator Improved Terrain Scan Processor EM Pulse Gun Beam Cannon Light Assault Rifle Grenade Launcher [Rating: 12] Favorites ----------- Power Light Ion Engine Engine Light Ion Engine Propulsion Light Treads Treads Light Treads Utility Small Storage Unit Device ECM Suite Storage Small Storage Unit Processor Signal Interpreter Weapon Light Assault Rifle Energy Gun EM Pulse Gun Energy Cannon Beam Cannon Ballistic Gun Light Assault Rifle Ballistic Cannon Heavy Assault Cannon Launcher Rocket Launcher Build | -11 -10 -10 -9 ------- Run | Yrd Mat Min Mat Slots Evolved 2 | . . . 2 Power 1 | . . . 1 Propulsion 1 | . . . 1 Utility . | . . . . Weapon . | . . . . Parts Attached 14 | 6 3 2 3 Power 1 | 1 . . . Engine 1 | 1 . . . Core . | . . . . Reactor . | . . . . Propulsion 3 | 2 . 1 . Treads 3 | 2 . 1 . Leg . | . . . . Wheel . | . . . . Hover . | . . . . Flight . | . . . . Utility 3 | 1 2 . . Device 1 | . 1 . . Storage 1 | 1 . . . Processor 1 | . 1 . . Hackware . | . . . . Protection . | . . . . Artifact . | . . . . Weapon 7 | 2 1 1 3 Energy Gun 1 | . . . 1 Energy Cannon 1 | . . . 1 Ballistic Gun 2 | 2 . . . Ballistic Cannon 1 | . . . 1 Launcher 2 | . 1 1 . Special Weapon . | . . . . Impact Weapon . | . . . . Slashing Weapon . | . . . . Piercing Weapon . | . . . . Special Melee Weapon . | . . . . Unidentified Prototypes . | . . . . Parts Lost 2 | . . . 2 Power 1 | . . . 1 Propulsion 1 | . . . 1 Utility . | . . . . Weapon . | . . . . Highest Loss Streak 2 | . . . 2 To Critical Strikes . | . . . . Average Backups 3 | . 1 4 7 Power . | . . . . Propulsion . | . . . . Utility . | . . . 2 Weapon 2 | . 1 3 4 Tool/Special . | . . . . Unused Backups 8 | 1 . . 7 Power . | . . . . Propulsion 1 | 1 . . . Utility 6 | . . . 6 Weapon 1 | . . . 1 Tool/Special . | . . . . Average Slot Usage (%) 89 | . 96 100 67 Engine 12 | . 14 14 7 Treads 25 | . 28 28 18 Device 10 | . 7 14 11 Storage 13 | . 14 14 11 Processor 1 | . 3 . . Ballistic Gun 12 | . 14 14 6 Launcher 11 | . 13 14 6 Peak Build Rating 12 | 6 7 8 12 Average Rating 7 | 4 6 7 7 On Entrance 5 | . 6 7 8 Naked Turns . | . . . . Heaviest Build 22 | 10 14 15 22 Greatest Support 40 | 40 40 40 40 Greatest Overweight (x) . | . . . . Average Overweight (x) . | . . . . Largest Inventory Capacity 8 | 8 8 8 8 Average Capacity 7 | 6 8 8 8 Most Carried 8 | 4 4 8 8 Average Carried 4 | . 1 4 7 Final Capacity 8 | 8 8 8 8 Final Carried 8 | . 4 8 7 Class Distribution -------------------- 100% | Mutant Dominant Class ---------------- Mutant | -10/Materials Mutant | -10/Mines Mutant | -9/Materials Resources | -11 -10 -10 -9 ----------- Run | Yrd Mat Min Mat Matter Collected 394 | 169 72 137 16 Remotely . | . . . . Salvage Created 466 | . 215 150 101 Parts 48 | . 30 12 6 Haulers Intercepted 1 | . 1 . . Recyclers Shooed . | . . . . Parts Field Recycled . | . . . . Retrieved Matter . | . . . . Parts Self-Destructed . | . . . . Prevented . | . . . . Kills | -11 -10 -10 -9 ------- Run | Yrd Mat Min Mat Combat Hostiles Destroyed 25 | . 8 10 7 Guns 5 | . 4 1 . Cannons 1 | . . . 1 AOE 19 | . 4 9 6 Classes Destroyed 7 | . 6 . 1 Worker 2 | . 2 . . Builder 5 | . 5 . . Hauler 1 | . 1 . . Watcher 2 | . 2 . . Swarmer 12 | . 3 6 3 Grunt 12 | . 5 4 3 Sentry 1 | . . . 1 Best Kill Streak 14 | . 14 3 6 Combat Bots Only 6 | . 5 3 6 Max Kills in Single Turn 4 | . 4 3 2 Gunslinging . | . . . . Exploded 3 | . 2 3 2 Melee . | . . . . Uniques/NPCs Destroyed . | . . . . Combat | -11 -10 -10 -9 -------- Run | Yrd Mat Min Mat Hostile Shots Fired 64 | . 28 15 21 Missed 28 | . 13 5 10 Hits 36 | . 15 10 11 Projectile 36 | . 15 10 11 Critical Strikes 1 | . . . 1 Damage Taken 572 | . 266 169 137 Core 75 | . 52 11 12 Absorbed by Shields . | . . . . Regen/Repaired (Parts) 38 | . . . 38 Core Remaining (%) 87 | 100 . 74 . Volleys Fired 33 | . 15 8 10 Largest 2 | . 2 2 2 Hottest 53 | . 50 53 53 Shots Fired 62 | . 28 16 18 Gun 31 | . 15 8 8 Cannon 2 | . . . 2 Launcher 29 | . 13 8 8 Special . | . . . . Kinetic 33 | . 15 8 10 Thermal . | . . . . Explosive 29 | . 13 8 8 Electromagnetic . | . . . . Robot Hit Streak 13 | . 13 3 3 Robot Miss Streak 3 | . 1 1 3 Penetration Max . | . . . . Secondary Targets . | . . . . Shots Hit Robots 38 | . 19 10 9 Core Hits 54 | . 30 15 9 Critical Kills . | . . . . Critical Parts Destroyed . | . . . . Critical Strikes . | . . . . Melee Attacks . | . . . . Impact . | . . . . Slashing . | . . . . Piercing . | . . . . Sneak Attacks . | . . . . Combat Hostiles . | . . . . Follow-up Attacks . | . . . . Damage Inflicted 2490 | . 1229 674 587 Guns 173 | . 96 36 41 Cannons 64 | . . . 64 Explosions 2243 | . 1126 635 482 Melee . | . . . . Ramming 10 | . 7 3 . Kinetic 237 | . 96 36 105 Thermal . | . . . . Explosive 2243 | . 1126 635 482 Electromagnetic . | . . . . Impact . | . . . . Slashing . | . . . . Piercing . | . . . . Highest Corruption . | . . . . Average Corruption . | . . . . Corruption Purged . | . . . . Corruption Blocked . | . . . . Overload Shots . | . . . . Overflow Damage 60 | . . 19 41 Projectiles . | . . . . Explosions 60 | . . 19 41 Melee . | . . . . Knockbacks . | . . . . Impact . | . . . . Kinetic . | . . . . Secondary . | . . . . Self-Inflicted Damage 157 | . 104 53 . Shots 9 | . 6 3 . Rammed 2 | . 1 1 . Targets Rammed 2 | . 1 1 . Kicked . | . . . . Crushed . | . . . . Highest Temperature 38 | . 34 38 27 Average Temperature 13 | . 15 16 9 Received Heat Transfer 195 | . 78 51 66 Siege Activations . | . . . . Martial Activations . | . . . . Shielding Activations . | . . . . Robots Disrupted . | . . . . Combat Hostiles . | . . . . Robots Corrupted . | . . . . Combat Hostiles . | . . . . Parts Fried . | . . . . Impact Corruptions . | . . . . Robots Melted . | . . . . Combat Hostiles . | . . . . Parts Melted . | . . . . Heat Transferred . | . . . . Parts Sabotaged . | . . . . Parts Stolen . | . . . . Parts Stripped . | . . . . Power Chain Reactions . | . . . . Alert | -11 -10 -10 -9 ------- Run | Yrd Mat Min Mat Maximum Alert Level 1 | . 1 1 . Low Security (%) 69 | 100 69 36 100 Level 1 30 | . 30 63 . Level 2 . | . . . . Level 3 . | . . . . Level 4 . | . . . . Level 5 . | . . . . High Security . | . . . . Max Security . | . . . . Peak Influence 312 | . 254 312 184 Initial 78 | . . 78 63 Average 124 | . 79 221 89 Influence Increases 824 | . 284 314 226 Destroy 0b10 Robot/C 500 | . 160 200 140 Destroy 0b10 Robot/NC 50 | . 50 . . Destroy Leader 96 | . 26 40 30 Disable Machine 30 | . . 15 15 Destroy Structure 148 | . 48 59 41 Influence Decreases 728 | . 82 354 292 Entered New Map 223 | . . 124 99 Time Decay 485 | . 82 230 173 Lost Part 20 | . . . 20 Squads Dispatched 2 | . 2 . . Investigation 1 | . 1 . . Extermination . | . . . . Reinforcement 1 | . 1 . . Assault . | . . . . Garrison . | . . . . Intercept . | . . . . Searches Triggered . | . . . . Construction Impeded . | . . . . Haulers Reinforced . | . . . . Active Scanning Responses . | . . . . Cargo Convoy Interrupts . | . . . . Stealth | -11 -10 -10 -9 --------- Run | Yrd Mat Min Mat Distress Signals 1 | . 1 . . Communications Jammed . | . . . . Distress Signals . | . . . . Times Spotted 29 | . 12 10 7 Peak Tracking Total 4 | . 4 3 3 Tactical Retreats . | . . . . Traps | -11 -10 -10 -9 ------- Run | Yrd Mat Min Mat Traps Triggered 1 | . 1 . . Indirectly . | . . . . Trap Hack Attempts . | . . . . Triggered . | . . . . Disarmed . | . . . . Reprogrammed . | . . . . Reused . | . . . . Traps Extracted . | . . . . Installed . | . . . . Triggered . | . . . . Machines | -11 -10 -10 -9 ---------- Run | Yrd Mat Min Mat Machines Disabled 2 | . . 1 1 Max in Single Turn 1 | . . 1 1 Machines Repaired . | . . . . Machines Dismantled . | . . . . Machines Sabotaged . | . . . . Overloaded Fab Kills . | . . . . Hacking | -11 -10 -10 -9 --------- Run | Yrd Mat Min Mat Machines Accessed 1 | . . . 1 Terminals . | . . . . Fabricators . | . . . . Repair Stations 1 | . . . 1 Recycling Units . | . . . . Scanalyzers . | . . . . Garrison Access . | . . . . Total Hacks 2 | . . . 2 Successful 2 | . . . 2 Failed . | . . . . Catastrophic . | . . . . Database Lockouts . | . . . . Manual . | . . . . Terminals . | . . . . Fabricators . | . . . . Repair Stations 2 | . . . 2 Recycling Units . | . . . . Scanalyzers . | . . . . Garrison Access . | . . . . Terminal Hacks . | . . . . Fabricator Hacks . | . . . . Repair Station Hacks 2 | . . . 2 Scan Component 1 | . . . 1 Repair 1 | . . . 1 Recycling Unit Hacks . | . . . . Scanalyzer . | . . . . Garrison Access Hacks . | . . . . Unauthorized Hacks . | . . . . Terminals . | . . . . Fabricators . | . . . . Repair Stations . | . . . . Recycling Units . | . . . . Scanalyzers . | . . . . Garrison Access . | . . . . Data Cores Recovered . | . . . . Used . | . . . . Hacking Detections . | . . . . Full Trace Events . | . . . . Feedback Events . | . . . . Feedback Blocked . | . . . . Robot Schematics Acquired . | . . . . Robots Built . | . . . . Authchips . | . . . . Time . | . . . . Total Robot Build Rating . | . . . . Part Schematics Acquired . | . . . . Parts Built . | . . . . Authchips . | . . . . Time . | . . . . Total Part Build Rating . | . . . . Parts Repaired 1 | . . . 1 Time 38 | . . . 38 Parts Recycled . | . . . . Recycled Matter . | . . . . Retrieved Matter . | . . . . Retrieved Components . | . . . . Parts Scanalyzed . | . . . . Part Schematics Acquired . | . . . . Parts Damaged . | . . . . Bothacking | -11 -10 -10 -9 ------------ Run | Yrd Mat Min Mat Used RIF Installer . | . . . . Robots Hacked . | . . . . Non-combat . | . . . . Combat . | . . . . Robot Hacks Applied . | . . . . Relay Couplers Released . | . . . . Fabnet Peak Effective % . | . . . . Robots Rewired . | . . . . Allies Hacked . | . . . . Hacks Repelled . | . . . . Allies | -11 -10 -10 -9 -------- Run | Yrd Mat Min Mat Total Allies . | . . . . Largest Group . | . . . . Highest-Rated Group . | . . . . Highest-Rated Ally . | . . . . Total Orders . | . . . . Ally Attacks . | . . . . Total Damage . | . . . . Kills . | . . . . Allies Corrupted . | . . . . Allies Melted . | . . . . Intel | -11 -10 -10 -9 ------- Run | Yrd Mat Min Mat Active Infowar (turns) 1143 | . 249 495 399 ECM 1143 | . 249 495 399 Robot Analysis Total . | . . . . Derelict Logs Recovered 2 | . . 2 . Drone Launches . | . . . . Drone Recoveries . | . . . . Exploration | -11 -10 -10 -9 ------------- Run | Yrd Mat Min Mat Turns Passed 1471 | 110 467 495 399 Spaces Moved 791 | 70 260 290 171 Core 13 | 13 . . . Treads 778 | 57 260 290 171 Legs . | . . . . Wheels . | . . . . Hover . | . . . . Flight . | . . . . Fastest Speed 50 | 50 160 160 160 Average Speed 158 | 139 160 160 160 Slowest Speed 160 | 160 160 160 160 Overloaded Moves . | . . . . Propulsion Burnouts . | . . . . Robots Hopped . | . . . . Potential Cave-ins . | . . . . Cave-ins Triggered . | . . . . Exploration Rate (%) 33 | 5 42 70 17 Regions Visited 3 Branch Regions 1 Pre-discovered Areas 1 | . . 1 . Known Exits Taken . | . . . . Unknown Exits Taken 3 | 1 1 1 . Scrap Searched 1 | . . 1 . Spaces Dug . | . . . . Terrain Destroyed 172 | . 47 74 51 Melee . | . . . . Projectile 2 | . . . 2 AOE 170 | . 47 74 49 Terrain Rammed . | . . . . Walls Destroyed . | . . . . Machines Disabled . | . . . . Actions | -11 -10 -10 -9 --------- Run | Yrd Mat Min Mat Total 957 | 83 286 306 282 Wait 88 | . 1 . 87 Move 788 | 69 259 289 171 Hop . | . . . . Pick Up 23 | 7 6 5 5 Fast Attach . | . . . . Attach 12 | 6 2 1 3 Detach . | . . . . Swap 2 | . 1 1 . Drop 9 | 1 1 1 6 Fire 33 | . 15 8 10 Melee . | . . . . Ram . | . . . . Kick . | . . . . Crush 2 | . 1 1 . Escape Stasis . | . . . . Rewire . | . . . . Trap . | . . . . Miscellaneous . | . . . . Route ------- -11/Scrapyard -10/Materials -10/Mines -9/Materials History --------- Turn | Location | Event 10 | -11/Scrapyard | Discovered new exit (range 15) 111 | -11/Scrapyard | Entered Materials 311 | -10/Materials | Build established: Mutant 564 | -10/Materials | Discovered new exit (range 5) 578 | -10/Materials | Entered Mines 618 | -10/Mines | Learned location of Storage (-7) 675 | -10/Mines | Received a Rocket Launcher from a helpful Derelict 1054 | -10/Mines | Discovered new exit (range 10) 1073 | -10/Mines | Entered Materials 1073 | -9/Materials | Evolved 2 slots: Power x1, Propulsion x1 1410 | -9/Materials | Repaired Hvy. Assault Cannon 1472 | -9/Materials | Self-destructed Last Messages --------------- >>Scan(Hvy. Assault Cannon) Scanning Hvy. Assault Cannon... Ready to Repair: Hvy. Assault Cannon Rating: 3 Time: 38 >>Repair Repairing Hvy. Assault Cannon... ETC: 38 01387_ U-05 Engineer lays Concrete. 01388_ U-05 Engineer builds a Wall. 01410_ Repair station completes Hvy. Assault Cannon repairs. 01411_ Acquired Hvy. Assault Cannon. 01420_ K-01 Serf collects debris. 01443_ R-06 Scavenger collects Heat Sink. 01445_ K-01 Serf collects debris. 01453_ K-01 Serf cleans the Repair Station. 01457_ K-01 Serf collects debris. 01461_ K-01 Serf cleans the Repair Station. Map ----- +----------------------------------------------------+ | ?????????????????????????????????????????????????? | | ?????????????????????????????????????????????????? | | ?????????????????????????????????????????????????? | | ?????????????????????????????????????????????????? | | ?????????????????????????????????????????????????? | | ?????????????????????????????????????????????????? | | ?????????????????????????????????????????????????? | | ?????????????????????????????????????????????????? | | ?????????????????????????????????????????????????? | | ?????????????????????????????????????????????????? | | ?????????????????????????????????????????????????? | | ?????????????????????????????????????????????????? | | ?????????????????????????????????????????????????? | | ????????????????????????? ???????????????????????? | | ???????????????????????? ???????????????????????? | | ???????????????????????? [????###???????????????? | | ????????????????????????? [ ## ####????????????? | | ?????????????????????????? # #????????????? | | ??????????????????????????##+## #????????????? | | ?????????????????????????? ##########???? | | ??????????????????????????? *% ### # # #???? | | ????????????????????????????### ## !]] !#???? | | ######??????????#############=# ## []!] !#???? | | # ??????????# """ # #### ![! #???? | | # ?????????# "R" # # #???? | | # ?????????# " " @ + #???? | | # ????????# k !|| # #???? | | # """?????????# !|| # ##??? | | #? ""??????????# |! # #??? | | #? "???????????#######;##%#### = #??? | | ###+######################;### [ #?? | | #?? | | ### # ## #?? | | #?#### # # #?? | | ##########+################### #????######## #?? | | ########## """ #????????????# #???????????? #?? | | #! ^^^ # """ #????????????# #???????????? #?? | | # # """ #???????????? ????????????? #?? | | # """ # #???????????? T" #?????????????#?? | | # """"" # #???????????? " ???????????????? | | # """"" # #???????????#^ ##??????????????? | | + """"" ########???????????##+###???????????????? | | # """ #???????????????????????????????????????? | | # #???????????????????????????????????????? | | # #???????????????????????????????????????? | | ##########???????????????????????????????????????? | | # #?????????????????????????????????????????? | | # """#?????????????????????????????????????????? | | + """#?????????????????????????????????????????? | | # """#?????????????????????????????????????????? | +----------------------------------------------------+ Best States ------------- Heat Dissipation 28 Energy Generation 10 Energy Capacity 125 Matter Stores 209 Matter Capacity 300 Sight Range 16 Terrain Scan Density 10 ECM Strength 1 Evasion (%) 50 Recoil Reduction 2 Item Schematics ----------------- None Robot Schematics ------------------ None Fabricated ------------ Nothing Repaired ---------- Hvy. Assault Cannon | 84% | -9/Materials Alien Tech Used ----------------- None Achievements -------------- None Challenges ------------ None Game ------ Seed AccelerationComponentArmor Manual? 0 Play Time 00:13:42 Cumulative 4.9 hours Start 2025.07.16 @ 15:32:33 End 2025.07.16 @ 15:44:56 Sessions 1 Manual Loads 0 Difficulty Rogue Special Mode None Game No. 11 Rogue 11 Adventurer 0 Explorer 0 Win Type - Total 0 Types 0/0/0/0/0/0/0/0/0/0 Lore% 5 Gallery% 9 Achievement% 9 Wizard Run 0 Options --------- Layout 1 ASCII 0 Keyboard 0 Movement Numpad Keybinds 0 Fullscreen 1 Font 32/SmallcapsGlow Map View 50x35 Zoom Use 0% Tactical HUD 1 Map Filters NONE Filters NONE Steam 1 RUN: 7713125f-8eeb-4131-a28a-785fad34eb3e